lending/lending_fUSD_20240120
["ID","MTS","AMOUNT","RATE_DAILY","PERIOD"]
[312329031,1705780238577,-1100.0,0.000228,8]
[312329032,1705780238587,-896.0369,0.00022899,2]
[312329033,1705780238596,-158.02027901,0.00022899,2]
[312329034,1705780238606,-5000.0,0.000229,2]
[312329035,1705780238615,-227.36657171,0.000229,2]
[312329036,1705780238625,-158.39771435,0.000229,2]
[312329037,1705780238635,-191.76722821,0.000229,2]
[312329038,1705780238644,-2196.32611506,0.000229,2]
[312329039,1705780238653,-1400.0,0.000229,8]
[312329040,1705780238663,-4348.50915531,0.00022997,2]
[312329041,1705780238672,-155.0,0.00022997,2]
[312329042,1705780238681,-277.72145531,0.00022998,2]
[312329044,1705780238690,-190.77475449,0.00022998,2]
[312329046,1705780238699,-505905.04796851,0.00022999,2]
[312329048,1705780238708,-178.28979259,0.00022999,2]
[312329050,1705780238718,-150.0,0.00022999,2]
[312329051,1705780238727,-1744556.31344441,0.00023,3]
[312329053,1705780238736,-815132.76731568,0.00023,2]
[312329056,1705780238749,-426487.768516,0.00023,2]
[312329058,1705780238760,-103956.77504338,0.00023,2]
[312329060,1705780238772,-1452.325875,0.00023,2]
[312329063,1705780238787,-556.54212966,0.00023,2]
[312329066,1705780238808,-620614.36404941,0.00023,2]
[312329068,1705780238817,-11537.72992349,0.0002313,2]
[312329070,1705780238826,-1205.48744056,0.00023189,2]
[312329072,1705780238835,-1130.15,0.00023245,2]
[312329074,1705780238844,-173.90448234,0.00023288,2]
[312329075,1705780238853,-840.0,0.00023665,2]
[312329077,1705780238862,-201.07103517,0.00024,2]
[312329079,1705780238871,-1130.15,0.00024046,2]
[312329081,1705780238880,-180.0,0.00024055,2]
[312329083,1705780238889,-153.22,0.00024076,2]
[312329085,1705780238898,-251.59506386,0.000241,2]
[312329087,1705780238907,-416.22,0.00024167,2]
[312329089,1705780238916,-167.0,0.00024297,2]
[312329091,1705780238926,-325.10768033,0.0002442,2]
[312329093,1705780238935,-526.51463532,0.00024442,2]
[312329095,1705780238944,-12303.42922454,0.000245,2]
[312329097,1705780238953,-129414.78662138,0.000245,2]
[312329099,1705780238963,-158.02027897,0.00024545,2]
[312329101,1705780238972,-447.98,0.00024552,2]
[312329103,1705780238982,-250.0,0.00024658,2]
[312329105,1705780238992,-1130.15,0.00024847,2]
[312329107,1705780239002,-153.22,0.00024928,2]
[312329109,1705780239011,-158.71925605,0.00025,2]
[312329111,1705780239020,-202.08717836,0.00025,2]
[312329113,1705780239030,-1584.56156338,0.00025,2]
[312329115,1705780239039,-303.55478187,0.00025,2]
[312329118,1705780239049,-167.43304946,0.00025,2]
[312329120,1705780239058,-933.94016922,0.00025,2]
[312329121,1705780239068,-2808.99282637,0.00025,2]
[312329123,1705780239078,-2807.30823442,0.00025,2]
[312329126,1705780239088,-1249.31192892,0.00025,2]
[312329127,1705780239098,-350.0,0.00025,3]
[312329130,1705780239108,-1799.35851724,0.000251,2]
[312329132,1705780239119,-328.0,0.00025107,2]
[312329134,1705780239129,-205.0,0.00025391,2]
[312329135,1705780239138,-274.15804258,0.0002549,2]
[312329137,1705780239148,-153.22,0.00025779,2]
[312329139,1705780239160,-1726.17750685,0.00025783,28]
[312329142,1705780239171,-416.22,0.00025811,2]
[312329144,1705780239181,-20000.0,0.000259,2]
[312329145,1705780239190,-178.28979259,0.00025999,2]
[312329147,1705780239201,-150.0,0.00025999,2]
[312329150,1705780239210,-463.11594283,0.00025999,4]
[312329151,1705780239219,-420.59010105,0.00025999,4]
[312329154,1705780239229,-155.81903011,0.00025999,4]
[312329155,1705780239240,-500.0,0.00025999,4]
[312329158,1705780239250,-173.5497633,0.00025999,4]
[312329159,1705780239260,-4174.35798873,0.00026,2]
[312329161,1705780239269,-201.15822793,0.00026,2]
[312329163,1705780239278,-18275.58683743,0.00026,2]
[312329165,1705780239287,-18275.58683743,0.00026,2]
[312329167,1705780239297,-18275.58683743,0.00026,2]
[312329170,1705780239307,-18275.58683743,0.00026,2]
[312329172,1705780239317,-18275.58683743,0.00026,2]
[312329173,1705780239326,-18275.58683743,0.00026,2]
[312329175,1705780239335,-18275.58683743,0.00026,2]
[312329177,1705780239345,-18275.58683743,0.00026,2]
[312329179,1705780239354,-18275.58683743,0.00026,2]
[312329181,1705780239363,-18275.58683743,0.00026,2]
[312329183,1705780239373,-1008.52,0.0002607,2]
[312329185,1705780239382,-1000.0,0.0002607,2]
[312329187,1705780239391,-999.99,0.0002607,2]
[312329189,1705780239401,-6028.41880989,0.0002607,5]
[312329191,1705780239410,-526.51463532,0.00026185,3]
[312329194,1705780239419,-158.02027897,0.00026191,2]
[312329196,1705780239430,-840.0,0.00026294,2]
[312329198,1705780239438,-167.0,0.00026302,2]
[312329200,1705780239447,-2196.32611504,0.000264,2]
[312329202,1705780239456,-16723.15950152,0.000264,2]
[312329204,1705780239466,-227.36657169,0.000264,2]
[312329206,1705780239475,-8592.66,0.00026575,2]
[312329208,1705780239485,-8940.23,0.00026575,2]
[312329209,1705780239494,-153.22,0.00026631,2]
[312329211,1705780239503,-740.29461507,0.00026804,2]
[312329214,1705780239512,-447.98,0.00026816,2]
[312329216,1705780239522,-155.0,0.00026837,2]
[312329218,1705780239531,-534.16831827,0.00026837,2]
[312329220,1705780239540,-155.0,0.00026837,2]
[312329221,1705780239549,-155.0,0.00027,2]
[312329223,1705780239559,-413.17098043,0.00027,2]
[312329225,1705780239568,-400.0,0.00027,3]
[312329227,1705780239577,-1560.98,0.00027123,2]
[312329229,1705780239586,-21452.65472652,0.000272,2]
[312329231,1705780239596,-302.0,0.00027396,2]
[312329233,1705780239605,-151.03074467,0.00027397,2]
[312329235,1705780239615,-3000.0,0.00027397,2]
[312329237,1705780239624,-3000.0,0.00027397,2]
[312329239,1705780239635,-4878.6747,0.00027397,2]
[312329241,1705780239645,-155.0,0.00027397,2]
[312329243,1705780239655,-2978.74,0.00027397,2]
[312329246,1705780239666,-212.71,0.00027397,2]
[312329248,1705780239675,-154.8,0.00027397,2]
[312329250,1705780239693,-165.35,0.00027397,2]
[312329253,1705780239705,-5632.93,0.00027397,2]
[312329255,1705780239714,-8000.0,0.000274,2]
[312329257,1705780239724,-252.52,0.000274,2]
[312329259,1705780239734,-252.52,0.000274,2]
[312329261,1705780239744,-252.52,0.000274,2]
[312329263,1705780239754,-252.52,0.000274,2]
[312329265,1705780239764,-252.52,0.000274,2]
[312329267,1705780239773,-252.52,0.000274,2]
[312329269,1705780239783,-252.52,0.000274,2]
[312329271,1705780239793,-252.52,0.000274,2]
[312329274,1705780239802,-252.52,0.000274,2]
[312329276,1705780239812,-252.52,0.000274,2]
[312329278,1705780239822,-416.22,0.00027455,2]
[312329280,1705780239831,-153.22,0.00027482,2]
[312329282,1705780239841,-185.71365577,0.000275,2]
[312329284,1705780239850,-12911.58140051,0.000275,2]
[312329286,1705780239860,-158.02027897,0.00027838,2]
[312329288,1705780239870,-328.0,0.00027897,2]
[312329290,1705780239879,-526.51463532,0.00027928,3]
[312329292,1705780239889,-689.05942203,0.00028,2]
[312329294,1705780239898,-203.12390135,0.00028,2]
[312329296,1705780239907,-4005.5184,0.00028,2]
[312329298,1705780239917,-167.0,0.00028307,2]
[312329300,1705780239926,-198.25879845,0.00028324,6]
[312329302,1705780239935,-153.22,0.00028334,2]
[312329304,1705780239945,-1466.89292153,0.00028399,6]
[312329306,1705780239954,-852.27125967,0.00028399,6]
[312329308,1705780239963,-648.38206761,0.00028399,6]
[312329310,1705780239972,-638.30452551,0.00028399,6]
[312329312,1705780239982,-297.82279994,0.00028399,6]
[312329314,1705780239991,-188.91437518,0.00028399,6]
[312329316,1705780240001,-405.63821236,0.00028477,6]
[312329318,1705780240011,-16974.77027642,0.00028501,7]
[312329320,1705780240020,-16839.46777189,0.00028501,7]
[312329322,1705780240030,-12341.79161018,0.00028501,7]
[312329324,1705780240039,-2896.59864246,0.00028501,6]
[312329326,1705780240049,-3556.12274217,0.00028501,6]
[312329328,1705780240058,-20135.98769262,0.00028501,7]
[312329330,1705780240068,-224.7881036,0.0002853,6]
[312329332,1705780240078,-2770.21184302,0.00028585,6]
[312329334,1705780240087,-660.10181469,0.00028585,6]
[312329336,1705780240097,-614.59886527,0.00028585,6]
[312329338,1705780240108,-545.05380882,0.00028585,6]
[312329340,1705780240117,-155.0,0.00028767,2]
[312329342,1705780240126,-2978.74,0.00028767,2]
[312329344,1705780240136,-8000.0,0.000288,2]
[312329346,1705780240145,-840.0,0.00028924,2]
[312329348,1705780240158,-1285.0,0.00028958,5]
[312329351,1705780240168,-326.42067519,0.00029,2]
[312329353,1705780240177,-450.0,0.00029,3]
[312329355,1705780240187,-447.98,0.0002908,2]
[312329357,1705780240197,-416.22,0.00029098,2]
[312329359,1705780240210,-74650.73602283,0.000291,2]
[312329361,1705780240220,-3660.0,0.000291,3]
[312329363,1705780240229,-29018.0,0.000291,3]
[312329365,1705780240239,-153.22,0.00029185,2]
[312329367,1705780240251,-205.0,0.00029236,8]
[312329368,1705780240260,-212.71,0.00029416,2]
[312329369,1705780240270,-165.35,0.00029416,2]
[312329370,1705780240279,-158.02027897,0.00029484,2]
[312329371,1705780240288,-551.28537832,0.000295,2]
[312329372,1705780240298,-158.39771435,0.00029647,2]
[312329373,1705780240308,-526.51463532,0.00029671,4]
[312329374,1705780240317,-403.0,0.0002978,2]
[312329375,1705780240327,-844.311,0.0002978,2]
[312329376,1705780240336,-1220.031,0.0002978,2]
[312329377,1705780240346,-1822.051,0.0002978,2]
[312329378,1705780240355,-1852.0,0.0002978,2]
[312329379,1705780240364,-945.0,0.0002978,2]
[312329380,1705780240373,-835.0,0.0002978,2]
[312329381,1705780240382,-724.018,0.0002978,2]
[312329383,1705780240392,-1252.0,0.0002978,2]
[312329385,1705780240402,-1323.172,0.0002978,2]
[312329387,1705780240411,-235.0,0.0002978,2]
[312329389,1705780240421,-368.199,0.0002978,2]
[312329391,1705780240432,-1138.0,0.0002978,2]
[312329393,1705780240441,-507.0,0.0002978,2]
[312329395,1705780240451,-838.028,0.0002978,2]
[312329397,1705780240461,-150.0,0.0002978,2]
[312329399,1705780240470,-924.31,0.0002978,2]
[312329401,1705780240480,-2271.0,0.0002978,2]
[312329403,1705780240489,-36518.318,0.0002978,2]
[312329405,1705780240499,-4956.291,0.0002978,2]
[312329407,1705780240508,-150.0,0.0002978,2]
[312329409,1705780240518,-19688.0,0.0002978,2]
[312329411,1705780240527,-150.0,0.0002978,2]
[312329413,1705780240536,-4170.0,0.0002978,2]
[312329415,1705780240546,-2903.0,0.0002978,2]
[312329418,1705780240560,-1030.0,0.0002978,2]
[312329420,1705780240569,-175.56419383,0.000298,2]
[312329422,1705780240579,-731.13762758,0.000298,2]
[312329424,1705780240589,-200.0,0.000298,10]
[312329426,1705780240598,-55555.0,0.0002988,2]
[312329428,1705780240607,-2196.32611504,0.00029899,2]
[312329430,1705780240617,-71141.88831024,0.000299,2]
[312329432,1705780240627,-6156.62364042,0.000299,2]
[312329434,1705780240636,-200.0,0.000299,10]
[312329436,1705780240645,-227.36657169,0.000299,2]
[312329439,1705780240655,-6388.41564965,0.0002996,2]
[312329441,1705780240664,-168.88314372,0.00029977,2]
[312329443,1705780240674,-178.28979259,0.00029979,2]
[312329445,1705780240684,-150.0,0.00029979,2]
[312329446,1705780240693,-178.28979259,0.00029979,2]
[312329447,1705780240703,-150.0,0.00029979,2]
[312329448,1705780240713,-178.28979259,0.00029979,2]
[312329449,1705780240723,-150.0,0.00029979,2]
[312329450,1705780240732,-2868268.62136493,0.0002998,2]
[312329451,1705780240742,-178.28979259,0.00029999,2]
[312329452,1705780240752,-150.0,0.00029999,2]
[312329453,1705780240762,-582.7666979,0.0003,2]
[312329454,1705780240772,-9641.46795832,0.0003,2]
[312329455,1705780240781,-6857.62294565,0.0003,4]
[312329456,1705780240791,-120145.33915094,0.0003,4]
[312329457,1705780240801,-526.7970813,0.0003,4]
[312329458,1705780240811,-274.64224589,0.0003,2]
[312329459,1705780240821,-814.57679404,0.0003,4]
[312329460,1705780240831,-445.98483451,0.0003,4]
[312329461,1705780240840,-1576.69697089,0.0003,4]
[312329462,1705780240850,-8843.95043296,0.0003,4]
[312329463,1705780240860,-692.06285158,0.0003,2]
[312329464,1705780240869,-19017.19619234,0.0003,4]
[312329465,1705780240879,-155.0,0.0003,2]
[312329466,1705780240889,-72955.54889028,0.0003,4]
[312329467,1705780240898,-719.53226594,0.0003,2]
[312329468,1705780240908,-324.42799891,0.0003,2]
[312329469,1705780240917,-245175.81872343,0.0003,2]
[312329470,1705780240934,-37142.33504103,0.0003,2]
[312329471,1705780240946,-772.48436816,0.0003,2]
[312329472,1705780240958,-1302.79398952,0.0003,2]
[312329473,1705780240970,-14021.28226084,0.0003,2]
[312329474,1705780240982,-21164.80818402,0.0003,2]
[312329475,1705780240991,-1089.06237293,0.0003,2]
[312329476,1705780241001,-311.69042559,0.0003,2]
[312329477,1705780241010,-10860.0,0.0003,5]
[312329478,1705780241020,-150.1,0.0003,2]
[312329479,1705780241029,-3000.0,0.0003,2]
[312329480,1705780241038,-3000.0,0.0003,2]
[312329481,1705780241048,-3000.0,0.0003,2]
[312329482,1705780241058,-3000.0,0.0003,2]
[312329483,1705780241071,-1503.22875507,0.0003,2]
[312329484,1705780241693,-1496.77124493,0.0003,2]
[312329485,1705780241703,-3000.0,0.0003,2]
[312329486,1705780241713,-3000.0,0.0003,2]
[312329487,1705780241723,-55552.94392715,0.000301,2]
[312329488,1705780241735,-646.92000009,0.000301,2]
[312329489,1705780241746,-1244.13490356,0.000301,2]
[312329490,1705780241759,-730.07124766,0.000301,2]
[312329491,1705780241772,-681.91,0.000301,2]
[312329492,1705780241783,-821.90744022,0.000301,2]
[312329493,1705780241795,-688.57565016,0.000301,2]
[312329494,1705780241807,-995.449599,0.000301,2]
[312329495,1705780241819,-5600.74314458,0.000301,2]
[312329496,1705780241847,-37708.30073276,0.000301,2]
[312329497,1705780241870,-2014.18522836,0.000301,2]
[312329498,1705780241892,-7502.46779618,0.000301,2]
[312329499,1705780241902,-342.1570288,0.000301,2]
[312329500,1705780241914,-292.008,0.000301,2]
[312329501,1705780241925,-785.69904767,0.000301,2]
[312329502,1705780242094,-836.15207859,0.000301,2]
[312329503,1705780242106,-595.71371154,0.000301,2]
[312329504,1705780242117,-769.4801,0.000301,2]
[312329505,1705780242152,-2394.288,0.000301,2]
[312329506,1705780242165,-1870.32490729,0.000301,2]
[312329507,1705780242176,-782.23979208,0.000301,2]
[312329508,1705780242211,-1500.0,0.000301,2]
[312329510,1705780242223,-2650.7651343,0.000301,2]
[312329541,1705780243304,-9277.52869632,0.000301,2]
[312329547,1705780243361,-359.94831696,0.000301,2]
[312329548,1705780243418,-898.20522835,0.000301,2]
[312329549,1705780243530,-19403.21747876,0.000301,2]
[312329550,1705780243540,-8000.0,0.000301,2]
[312329551,1705780243549,-2978.74,0.00030136,2]
[312329552,1705780243559,-150.0,0.00030137,2]
[312329553,1705780243568,-153.84,0.00030137,2]
[312329554,1705780243577,-155.0,0.00030137,2]
[312329555,1705780243587,-154.8,0.00030348,2]
[312329556,1705780243596,-328.0,0.00030687,2]
[312329557,1705780243605,-433.94,0.00030789,2]
[312329558,1705780243614,-15915.81230284,0.000309,2]
[312329559,1705780243624,-1000.0,0.00030906,2]
[312329560,1705780243634,-150.0,0.0003093,2]
[312329561,1705780243643,-7608.34687389,0.00031,2]
[312329563,1705780243652,-369.93922028,0.00031,2]
[312329565,1705780243661,-153.84,0.0003105,2]
[312329566,1705780243670,-158.02027897,0.0003113,2]
[312329567,1705780243679,-447.98,0.00031344,2]
[312329568,1705780243688,-526.51463532,0.00031414,5]
[312329569,1705780243698,-8500.93125187,0.0003143,4]
[312329570,1705780243707,-212.71,0.00031435,2]
[312329572,1705780243716,-165.35,0.00031435,2]
[312329574,1705780243725,-1000.0,0.000315,2]
[312329576,1705780243735,-5434.0,0.000315,2]
[312329578,1705780243744,-2978.74,0.00031506,2]
[312329580,1705780243753,-306.55,0.00031507,2]
[312329582,1705780243762,-155.0,0.00031507,2]
[312329584,1705780243772,-840.0,0.00031553,2]
[312329586,1705780243781,-197.4,0.00031644,2]
[312329588,1705780243791,-150.0,0.00031723,2]
[312329590,1705780243801,-151.0,0.000318,7]
[312329593,1705780243811,-151.0,0.000318,7]
[312329595,1705780243821,-5000.0,0.0003189,2]
[312329597,1705780243831,-153.84,0.00031963,2]
[312329599,1705780243841,-297.99449653,0.00032,4]
[312329601,1705780243850,-3783.14260718,0.00032,4]
[312329602,1705780243860,-1959.85042138,0.00032,2]
[312329604,1705780243869,-129672.44377346,0.00032,2]
[312329607,1705780243878,-357.87420369,0.00032205,2]
[312329608,1705780243888,-178.0,0.00032275,2]
[312329611,1705780243898,-13011.6163054,0.0003245,2]
[312329613,1705780243907,-657.81618824,0.000325,2]
[312329615,1705780243916,-150.0,0.00032516,2]
[312329617,1705780243925,-158.02027897,0.00032776,4]
[312329619,1705780243934,-319.0,0.0003278,2]
[312329621,1705780243943,-1138.0,0.0003278,2]
[312329623,1705780243952,-150.0,0.0003278,2]
[312329625,1705780243961,-150.0,0.0003278,2]
[312329627,1705780243971,-1030.0,0.0003278,2]
[312329629,1705780243979,-19378.14804912,0.00032876,3]
[312329631,1705780243989,-2978.74,0.00032876,2]
[312329633,1705780243998,-250.0,0.00032876,2]
[312329635,1705780244007,-404.12985798,0.00032876,7]
[312329637,1705780244016,-153.84,0.00032877,2]
[312329639,1705780244025,-500.0,0.00032877,2]
[312329641,1705780244034,-523.31,0.00032877,15]
[312329643,1705780244043,-155.0,0.00032877,2]
[312329645,1705780244052,-311.08584481,0.00032898,7]
[312329647,1705780244062,-401.0,0.000329,2]
[312329649,1705780244071,-480.0,0.000329,2]
[312329651,1705780244080,-418.13344596,0.000329,2]
[312329653,1705780244089,-151.0,0.000329,7]
[312329655,1705780244098,-8473.60182669,0.000329,2]
[312329656,1705780244108,-8473.60182669,0.000329,2]
[312329657,1705780244117,-8473.60182669,0.000329,2]
[312329658,1705780244126,-8473.60182669,0.000329,2]
[312329659,1705780244135,-8473.60182669,0.000329,2]
[312329660,1705780244145,-8473.60182669,0.000329,2]
[312329661,1705780244155,-8473.60182669,0.000329,2]
[312329662,1705780244166,-8473.60182669,0.000329,2]
[312329663,1705780244176,-8473.60182669,0.000329,2]
[312329664,1705780244185,-8473.60182669,0.000329,2]
[312329665,1705780244195,-4251.30935003,0.000329,2]
[312329666,1705780244208,-4222.29247666,0.000329,2]
[312329667,1705780244217,-8473.60182669,0.000329,2]
[312329668,1705780244226,-8473.60182669,0.000329,2]
[312329669,1705780244235,-151.0,0.000329,7]
[312329670,1705780244247,-151.0,0.000329,7]
[312329671,1705780244260,-5434.8405027,0.000329,2]
[312329672,1705780244269,-958.99761001,0.00033,2]
[312329673,1705780244279,-164.0,0.00033,2]
[312329674,1705780244288,-500.0,0.00033013,7]
[312329675,1705780244298,-205.0,0.00033082,14]
[312329676,1705780244309,-750.0,0.0003315,7]
[312329677,1705780244318,-526.51463532,0.00033157,6]
[312329678,1705780244327,-154.8,0.00033298,2]
[312329679,1705780244337,-150.0,0.00033309,2]
[312329680,1705780244346,-212.71,0.00033453,2]
[312329681,1705780244355,-165.35,0.00033453,2]
[312329682,1705780244364,-328.0,0.00033477,2]
[312329683,1705780244374,-728.21822696,0.000335,2]
[312329684,1705780244384,-1050.76,0.000335,2]
[312329685,1705780244394,-1050.76,0.000335,2]
[312329686,1705780244403,-1050.76,0.000335,2]
[312329687,1705780244413,-1050.76,0.000335,2]
[312329688,1705780244423,-1050.76,0.000335,2]
[312329689,1705780244433,-1050.76,0.000335,2]
[312329690,1705780244442,-1050.76,0.000335,2]
[312329691,1705780244452,-1050.76,0.000335,2]
[312329692,1705780244461,-1050.76,0.000335,2]
[312329693,1705780244471,-1050.76,0.000335,2]
[312329694,1705780244480,-1050.76,0.000335,2]
[312329695,1705780244490,-1050.76,0.000335,2]
[312329696,1705780244500,-1050.76,0.000335,2]
[312329697,1705780244509,-1050.76,0.000335,2]
[312329698,1705780244519,-1050.76,0.000335,2]
[312329699,1705780244528,-1050.76,0.000335,2]
[312329700,1705780244538,-1050.76,0.000335,2]
[312329701,1705780244547,-1050.76,0.000335,2]
[312329702,1705780244557,-1050.76,0.000335,2]
[312329703,1705780244566,-1050.76,0.000335,2]
[312329704,1705780244576,-447.98,0.00033607,2]
[312329705,1705780244585,-153.84,0.0003379,2]
[312329706,1705780244594,-3000.0,0.00033994,2]
[312329707,1705780244604,-433.91206314,0.00033994,2]
[312329708,1705780244613,-1000.0,0.00034,4]
[312329709,1705780244623,-500.0,0.00034,2]
[312329710,1705780244632,-226.41073861,0.00034,4]
[312329711,1705780244642,-446.38231046,0.00034,4]
[312329712,1705780244651,-4706.671699,0.00034,2]
[312329713,1705780244661,-2006.0,0.00034,2]
[312329714,1705780244670,-150.0,0.00034102,2]
[312329715,1705780244680,-1000.0,0.000342,2]
[312329716,1705780244690,-2978.74,0.00034246,2]
[312329717,1705780244700,-666.0,0.00034246,2]
[312329718,1705780244709,-4425.51274453,0.000345,2]
[312329719,1705780244719,-2367.07,0.00034649,2]
[312329720,1705780244730,-1383.77,0.00034649,2]
[312329721,1705780244739,-6848.86152782,0.0003465,2]
[312329722,1705780244749,-150.0,0.000347,2]
[312329723,1705780244758,-153.84,0.00034703,2]
[312329724,1705780244767,-306.55,0.00034703,2]
[312329725,1705780244777,-213.388761,0.00034777,10]
[312329726,1705780244787,-793.28409298,0.00034783,7]
[312329727,1705780244796,-225.63857518,0.000348,4]
[312329728,1705780244806,-428002.35256018,0.00034888,2]
[312329729,1705780244816,-150.0,0.00034895,2]
[312329730,1705780244826,-8961.38344061,0.000349,4]
[312329731,1705780244836,-3373.25077744,0.000349,2]
[312329732,1705780244845,-3373.25077737,0.000349,2]
[312329733,1705780244855,-3373.25077737,0.000349,2]
[312329734,1705780244865,-3373.25077737,0.000349,2]
[312329735,1705780244875,-3373.25077737,0.000349,2]
[312329736,1705780244885,-3373.25077737,0.000349,2]
[312329737,1705780244894,-3373.25077737,0.000349,2]
[312329738,1705780244904,-3373.25077737,0.000349,2]
[312329739,1705780244913,-526.51463532,0.000349,7]
[312329740,1705780244923,-620.01315922,0.00035,4]
[312329741,1705780244933,-448.27259389,0.00035,4]
[312329742,1705780244943,-23500.47032796,0.00035,4]
[312329743,1705780244953,-15747.42472386,0.00035,7]
[312329744,1705780244962,-5000.0,0.00035,2]
[312329745,1705780244972,-615.21134689,0.00035,4]
[312329746,1705780244982,-155.0,0.00035,2]
[312329747,1705780244991,-206517.21110229,0.00035,2]
[312329748,1705780245001,-500.9378514,0.00035,10]
[312329749,1705780245012,-3000.0,0.00035,2]
[312329750,1705780245021,-212.71,0.00035472,2]
[312329751,1705780245030,-165.35,0.00035472,2]
[312329752,1705780245039,-239.76,0.000355,2]
[312329753,1705780245049,-3373.25077737,0.00035531,2]
[312329754,1705780245059,-434.0,0.0003554,2]
[312329755,1705780245068,-10000.0,0.00035555,2]
[312329756,1705780245077,-16421.42944879,0.00035588,4]
[312329757,1705780245087,-200.0,0.00035604,2]
[312329758,1705780245097,-500.0,0.00035616,5]
[312329759,1705780245107,-2978.74,0.00035616,2]
[312329760,1705780245116,-153.84,0.00035616,2]
[312329761,1705780245126,-150.0,0.00035688,2]
[312329762,1705780245135,-755.97,0.000357,7]
[312329763,1705780245145,-1842.42,0.000357,7]
[312329764,1705780245154,-374.61,0.000357,7]
[312329765,1705780245167,-211.7,0.000357,2]
[312329766,1705780245177,-150.0,0.000357,2]
[312329767,1705780245186,-178.28979259,0.00035766,2]
[312329768,1705780245196,-150.0,0.00035766,2]
[312329769,1705780245205,-1744.75987864,0.00035767,5]
[312329770,1705780245214,-551.47282714,0.00035767,2]
[312329771,1705780245224,-314.33142403,0.00035767,4]
[312329772,1705780245234,-21208.70072832,0.00035767,2]
[312329773,1705780245243,-158.51368452,0.00035767,4]
[312329774,1705780245252,-319.0,0.0003578,2]
[312329775,1705780245261,-1138.0,0.0003578,2]
[312329776,1705780245270,-150.0,0.0003578,2]
[312329777,1705780245280,-1007.508,0.0003578,2]
[312329778,1705780245289,-1475.41857169,0.00035783,4]
[312329779,1705780245298,-380.09202361,0.00035783,4]
[312329780,1705780245309,-683.8796574,0.00035783,4]
[312329781,1705780245317,-1964.55439765,0.00035783,4]
[312329782,1705780245327,-1138.0899706,0.00035783,5]
[312329783,1705780245337,-838.0844007,0.00035783,2]
[312329784,1705780245347,-200.0,0.00035783,2]
[312329785,1705780245355,-5839.85633545,0.00035783,4]
[312329786,1705780245365,-819.8312848,0.00035783,4]
[312329787,1705780245375,-3996.49995547,0.00035783,2]
[312329788,1705780245385,-12619.23877771,0.00035783,2]
[312329789,1705780245395,-10924.3,0.00035783,2]
[312329790,1705780245404,-150.0,0.00035786,4]
[312329791,1705780245413,-300.0,0.00035786,30]
[312329792,1705780245423,-300.0,0.00035786,30]
[312329793,1705780245433,-300.0,0.00035786,30]
[312329794,1705780245443,-300.0,0.00035786,30]
[312329795,1705780245452,-300.0,0.00035786,30]
[312329796,1705780245461,-300.0,0.00035786,30]
[312329797,1705780245470,-300.0,0.00035786,30]
[312329798,1705780245479,-300.0,0.00035786,30]
[312329799,1705780245488,-300.0,0.00035786,30]
[312329800,1705780245498,-300.0,0.00035786,30]
[312329801,1705780245507,-300.0,0.00035786,30]
[312329802,1705780245516,-300.0,0.00035786,30]
[312329803,1705780245526,-300.0,0.00035786,30]
[312329804,1705780245535,-339.70984636,0.00035786,30]
[312329805,1705780245544,-300.0,0.00035786,30]
[312329806,1705780245554,-300.0,0.00035786,30]
[312329807,1705780245562,-300.0,0.00035786,30]
[312329808,1705780245572,-300.0,0.00035786,30]
[312329809,1705780245581,-300.0,0.00035786,30]